bitfinex-derivatives/quotes_SOLF0:USTF0_20250415
["timestamp","ask_amount","ask_price","bid_price","bid_amount"]
[1744732398348,4.2013,129.65,129.62,596.84772493]
[1744732398743,4.2013,129.65,129.62,589.13262493]
[1744732399451,4.2013,129.65,129.64,7.7142]
[1744732399750,4.2013,129.65,129.62,589.13262493]
[1744732399946,0.05941006,129.66,129.65,7.7136]
[1744732400652,4.0586,129.7,129.69,7.7113]
[1744732401145,4.0586,129.7,129.69,41.2113]
[1744732401351,7.7084,129.74,129.71,7.7096]
[1744732401541,4.1319,129.75,129.71,7.7096]
[1744732401741,0.05122126,129.74,129.72,0.058184]
[1744732401951,26.00560951,129.74,129.69,33.5]
[1744732402549,7.7092,129.73,129.7,7.7103]
[1744732402751,2.1496,129.73,129.69,33.5]
[1744732402953,2.1496,129.73,129.7,0.05514679]
[1744732403148,2.1496,129.73,129.7,0.05930374]
[1744732403149,2.20494793,129.73,129.7,0.05930374]
[1744732403452,7.71,129.72,129.7,0.05930374]
[1744732403654,2.20494793,129.73,129.7,0.05930374]
[1744732404743,2.20494793,129.73,129.71,7.7096]
[1744732405147,2.20494793,129.73,129.7,7.76970374]
[1744732405349,0.05534793,129.73,129.7,0.05930374]
[1744732405650,0.05534793,129.73,129.72,7.7095]
[1744732405855,4.0568,129.79,129.71,581.27438825]
[1744732406055,4.0568,129.79,129.72,33.48]
[1744732406355,4.0568,129.79,129.76,7.707]
[1744732406556,4.0568,129.79,129.76,33.48]
[1744732406755,4.1140274,129.79,129.78,7.7059]
[1744732407656,4.1140274,129.79,129.76,33.53929091]
[1744732407959,4.1140274,129.79,129.76,0.05929091]
[1744732408152,7.7062,129.78,129.76,0.05929091]
[1744732408552,7.7062,129.78,129.76,7.76639091]
[1744732408752,11.8196274,129.79,129.76,7.76639091]
[1744732408951,4.1140274,129.79,129.76,0.05929091]
[1744732409752,11.8197274,129.79,129.76,41.24629091]
[1744732410055,4.1140274,129.79,129.76,33.53929091]
[1744732410256,4.1140274,129.79,129.77,7.706]
[1744732410855,4.1140274,129.79,129.78,7.7059]
[1744732411158,4.1140274,129.79,129.76,33.53929091]
[1744732411657,4.1140274,129.79,129.77,7.7062]
[1744732411860,4.1140274,129.79,129.76,33.53929091]
[1744732412160,4.1140274,129.79,129.76,41.24619091]
[1744732412754,11.8197274,129.79,129.77,7.7064]
[1744732412959,4.1140274,129.79,129.77,7.7064]
[1744732413162,4.1140274,129.79,129.76,33.53929091]
[1744732413362,11.8196274,129.79,129.76,41.24609091]
[1744732413563,4.1140274,129.79,129.76,33.53929091]
[1744732413861,11.8196274,129.79,129.76,41.24609091]
[1744732414557,11.8196274,129.79,129.77,7.7065]
[1744732414761,4.1140274,129.79,129.77,7.7065]
[1744732414962,4.1140274,129.79,129.76,33.53929091]
[1744732415160,0.0572274,129.79,129.78,7.7059]
[1744732416661,0.0572274,129.79,129.77,7.7062]
[1744732416959,0.0572274,129.79,129.78,33.46]
[1744732417160,0.0572274,129.79,129.78,41.1659]
[1744732418164,0.0572274,129.79,129.78,33.46]
[1744732419065,0.0572274,129.79,129.78,41.1659]
[1744732421372,0.0572274,129.79,129.78,33.46]
[1744732421866,0.0572274,129.79,129.78,41.1659]
[1744732429469,18.21361402,129.85,129.82,7.703]
[1744732429674,2.0644,129.85,129.82,32.98]
[1744732430070,2.0644,129.85,129.84,7.7024]
[1744732430271,2.0644,129.85,129.82,32.98]
[1744732430272,4.2656,129.86,129.82,32.98]
[1744732430476,16.14921402,129.84,129.78,32.98]
[1744732430672,16.14921402,129.81,129.78,32.98]
[1744732431273,23.85361402,129.81,129.78,40.6856]
[1744732431472,16.14921402,129.82,129.78,40.6856]
[1744732431673,0.05672362,129.81,129.79,0.05270977]
[1744732431868,16.14921402,129.8,129.79,0.05270977]
[1744732432073,16.14921402,129.8,129.75,32.98]
[1744732432271,23.85601402,129.77,129.74,7.708]
[1744732432473,18.22221402,129.79,129.73,32.98]
[1744732432774,7.7067,129.77,129.74,7.7078]
[1744732432978,18.22221402,129.79,129.73,32.98]
[1744732433182,0.05671413,129.77,129.75,0.05583162]
[1744732433472,0.05671413,129.77,129.76,7.7067]
[1744732433973,16.20592815,129.77,129.75,0.05583162]
[1744732434171,16.14921402,129.74,129.66,32.98]
[1744732434366,23.85901402,129.72,129.68,7.7116]
[1744732434570,16.14921402,129.72,129.67,32.98]
[1744732434778,16.14921402,129.68,129.64,32.98]
[1744732434970,23.86141402,129.68,129.64,40.6939]
[1744732435278,0.05147501,129.67,129.65,0.05760629]
[1744732435670,0.05147501,129.67,129.65,7.77100629]
[1744732436368,0.05147501,129.67,129.65,0.05760629]
[1744732437774,0.05147501,129.67,129.65,7.77120629]
[1744732437979,0.05147501,129.67,129.65,0.05760629]
[1744732438373,7.7137,129.65,129.57,33.0]
[1744732438675,25.8834202,129.66,129.57,34.9697]
[1744732439176,7.7153,129.63,129.57,34.9697]
[1744732439479,0.04949929,129.61,129.59,0.05398875]
[1744732439671,0.05759082,129.61,129.59,0.05398875]
[1744732441076,4.0155,129.71,129.6,25.8834202]
[1744732441272,7.7122,129.68,129.64,7.7142]
[1744732441469,7.7122,129.68,129.65,33.0]
[1744732441776,7.7109,129.7,129.66,7.7129]
[1744732441972,0.05109181,129.69,129.67,0.05320015]
[1744732443169,1.975,129.76,129.68,25.8834202]
[1744732443374,7.7072,129.76,129.73,7.7086]
[1744732443573,29.9124202,129.79,129.69,33.0]
[1744732443778,25.8834202,129.77,129.69,33.0]
[1744732444075,0.04861052,129.74,129.72,0.05851158]
[1744732444670,7.7089,129.73,129.72,0.05851158]
[1744732445678,7.7105,129.71,129.69,33.0]
[1744732445874,25.8834202,129.71,129.66,33.0]
[1744732446571,25.8834202,129.69,129.67,0.05223796]
[1744732446880,25.8834202,129.69,129.66,33.0]
[1744732446881,25.8834202,129.69,129.62,33.0]
[1744732447377,7.7134,129.66,129.62,33.0]
[1744732447770,0.05153463,129.65,129.63,0.05920453]
[1744732447969,0.05153463,129.65,129.64,7.7142]
[1744732448167,0.05153463,129.65,129.63,0.05920453]
[1744732449074,0.05153463,129.65,129.64,7.7142]
[1744732449273,0.05153463,129.65,129.63,0.05920453]
[1744732449877,7.7142,129.64,129.63,0.05920453]
[1744732452876,7.76533463,129.65,129.63,0.05920453]
[1744732453178,0.05153463,129.65,129.63,0.05920453]
[1744732453369,0.05153463,129.65,129.63,33.67920453]
[1744732453776,0.05153463,129.65,129.63,41.39370453]
[1744732453972,0.05153463,129.65,129.63,33.67920453]
[1744732454578,0.05153463,129.65,129.64,7.7142]
[1744732454776,2.0318,129.72,129.63,33.67920453]
[1744732454977,2.0318,129.72,129.64,4.0964]
[1744732455278,7.7111,129.7,129.64,4.0964]
[1744732455675,0.05224601,129.68,129.66,0.05422557]
[1744732457181,7.7125,129.67,129.66,0.05422557]
[1744732457779,7.7142,129.64,129.63,33.62]
[1744732457983,25.8834202,129.66,129.59,33.62]
[1744732458175,25.8834202,129.66,129.61,7.7157]
[1744732458377,27.9642202,129.68,129.59,33.62]
[1744732458782,0.05501431,129.65,129.62,0.05726979]
[1744732459482,7.76901431,129.65,129.62,7.77236979]
[1744732459784,0.05501431,129.65,129.63,33.62]
[1744732460084,0.05501431,129.65,129.64,7.7142]
[1744732460383,0.05501431,129.65,129.63,33.62]
[1744732460586,0.05501431,129.65,129.63,41.3347]
[1744732461377,0.05501431,129.65,129.63,33.62]
[1744732461784,7.7142,129.64,129.63,33.62]
[1744732462084,7.7142,129.64,129.62,0.05726979]
[1744732462685,7.76891431,129.65,129.62,7.77266979]
[1744732462879,0.05501431,129.65,129.62,0.05726979]
[1744732463486,7.7145,129.64,129.62,0.05726979]
[1744732463684,25.8834202,129.64,129.62,0.05726979]
[1744732463979,7.7145,129.64,129.62,0.05726979]
[1744732464283,0.05501431,129.65,129.62,0.05726979]
[1744732464885,7.7148,129.63,129.62,0.05726979]
[1744732465482,2.08191431,129.65,129.62,0.05726979]
[1744732467185,25.8834202,129.64,129.62,0.05726979]
[1744732467387,7.7148,129.63,129.62,0.05726979]
[1744732467984,25.8834202,129.64,129.57,596.5182]
[1744732468288,25.8834202,129.62,129.57,33.62]
[1744732468681,2.1364,129.62,129.54,33.62]
[1744732468885,25.8834202,129.58,129.57,0.05828337]
[1744732469589,33.6012202,129.58,129.57,0.05828337]
[1744732470090,0.05596681,129.59,129.57,0.05828337]
[1744732470290,0.05596681,129.59,129.58,7.7178]
[1744732470688,0.05596681,129.59,129.58,41.3378]
[1744732473395,0.05596681,129.59,129.58,33.62]
[1744732475987,16.25225332,129.59,129.57,0.05828337]
[1744732476493,7.7178,129.58,129.57,0.05828337]
[1744732477789,0.05596681,129.59,129.57,0.05828337]
[1744732478290,0.05596681,129.59,129.58,7.7178]
[1744732484090,4.0626,129.65,129.58,16.19628651]
[1744732484399,16.19628651,129.68,129.6,16.19628651]
[1744732484598,7.7135,129.66,129.63,7.7144]
[1744732485098,0.05387547,129.66,129.63,7.7644133]
[1744732485397,0.05387547,129.66,129.64,7.7141]
[1744732485597,0.05387547,129.66,129.63,0.0500133]
[1744732485800,7.76717547,129.66,129.63,0.0500133]
[1744732486099,7.76717547,129.66,129.63,7.7643133]
[1744732486300,7.76717547,129.66,129.63,0.0500133]
[1744732486594,7.76717547,129.66,129.64,7.7142]
[1744732486898,0.05387547,129.66,129.64,7.7142]
[1744732487298,0.05387547,129.66,129.63,0.0500133]
[1744732487299,0.05387547,129.66,129.65,7.7136]
[1744732487499,0.05387547,129.66,129.63,0.0500133]
[1744732488100,0.05387547,129.66,129.64,7.7142]
[1744732488593,0.05387547,129.66,129.65,7.7136]
[1744732488902,0.05387547,129.66,129.65,40.6536]
[1744732489091,16.19628651,129.72,129.65,32.94]
[1744732489295,7.7112,129.7,129.67,7.7122]
[1744732489902,7.7113,129.69,129.66,7.7127]
[1744732490203,0.05589191,129.69,129.66,0.05221398]
[1744732490402,0.05589191,129.69,129.67,7.7122]
[1744732490998,0.05589191,129.69,129.68,7.7119]
[1744732491203,0.05589191,129.69,129.66,0.05221398]
[1744732491701,7.76739191,129.69,129.66,7.76491398]
[1744732492605,0.05589191,129.69,129.67,7.7122]
[1744732492902,0.05589191,129.69,129.66,0.05221398]
[1744732493903,0.05589191,129.69,129.68,7.7119]
[1744732494603,16.19628651,129.75,129.71,7.71]
[1744732494802,16.19628651,129.77,129.7,32.92]
[1744732495004,16.19628651,129.77,129.73,7.7088]
[1744732495204,4.0854,129.78,129.71,32.92]
[1744732495405,2.109,129.78,129.71,32.92]
[1744732495603,0.05419726,129.76,129.73,0.05801916]
[1744732496306,0.05419726,129.76,129.73,7.76661916]
[1744732496715,0.05419726,129.76,129.73,0.05801916]
[1744732497009,0.05419726,129.76,129.74,7.708]
[1744732497507,0.05419726,129.76,129.73,0.05801916]
[1744732500816,7.76169726,129.76,129.73,7.76661916]
[1744732501013,0.05419726,129.76,129.73,0.05801916]
[1744732502016,16.19628651,129.74,129.63,32.92]
[1744732502313,7.7107,129.7,129.66,7.7127]
[1744732502513,7.7107,129.7,129.67,32.92]
[1744732502813,7.7118,129.69,129.67,32.92]
[1744732503015,0.05726415,129.69,129.67,32.96996711]
[1744732504517,7.76886415,129.69,129.67,32.96996711]
[1744732505320,7.7119,129.68,129.67,32.96996711]
[1744732505617,0.05726415,129.69,129.67,32.96996711]
[1744732506311,7.7119,129.68,129.67,32.96996711]
[1744732506612,0.05726415,129.69,129.67,32.96996711]
[1744732507016,7.7119,129.68,129.67,32.96996711]
[1744732507219,7.7119,129.68,129.67,0.04996711]
[1744732507713,25.88250005,129.68,129.6,555.02]
[1744732507920,25.88250005,129.66,129.59,32.92]
[1744732508314,7.7162,129.61,129.59,32.92]
[1744732508817,0.05577528,129.61,129.59,32.97275898]
[1744732509515,0.05577528,129.61,129.59,0.05275898]
[1744732509915,7.7166,129.6,129.59,0.05275898]
[1744732510518,7.7179,129.58,129.56,32.92]
[1744732510721,25.88250005,129.6,129.56,32.92]
[1744732511322,7.7175,129.59,129.56,32.92]
[1744732511517,25.88250005,129.6,129.56,32.92]
[1744732511821,0.05351602,129.59,129.56,32.96995344]
[1744732512021,25.88250005,129.58,129.53,32.92]
[1744732512220,25.88250005,129.6,129.53,32.92]
[1744732512417,7.7176,129.59,129.55,7.7192]
[1744732512618,25.88250005,129.6,129.53,32.92]
[1744732512818,25.88250005,129.58,129.53,32.92]
[1744732513121,0.0585787,129.57,129.54,0.04905907]
[1744732513421,4.3358787,129.57,129.54,0.04905907]
[1744732513622,7.7194,129.56,129.54,0.04905907]
[1744732514823,0.0585787,129.57,129.54,0.04905907]
[1744732515324,0.0585787,129.57,129.55,7.7193]
[1744732515722,0.0585787,129.57,129.54,0.04905907]
[1744732516126,0.0585787,129.57,129.55,7.7192]
[1744732516431,0.0585787,129.57,129.54,0.04905907]
[1744732516917,2.102,129.63,129.54,35.82425912]
[1744732517116,1.9625,129.65,129.58,25.88250005]
[1744732517321,2.1559,129.68,129.59,32.94]
[1744732517527,2.1559,129.68,129.63,7.7145]
[1744732517825,2.1559,129.68,129.63,32.94]
[1744732518026,0.04956028,129.67,129.64,0.05497245]
[1744732518726,7.7134,129.66,129.64,0.05497245]
[1744732519025,0.04956028,129.67,129.64,0.05497245]
[1744732519328,7.7136,129.65,129.64,0.05497245]
[1744732519517,25.88250005,129.65,129.57,32.94]
[1744732519717,25.88250005,129.63,129.57,32.94]
[1744732520119,3.9715,129.64,129.57,32.94]
[1744732520517,0.0574869,129.62,129.59,0.05828162]
[1744732521228,7.7164,129.61,129.59,0.05828162]
[1744732522329,7.7729869,129.62,129.59,7.77548162]
[1744732522528,7.7729869,129.62,129.59,0.05828162]
[1744732522828,7.7162,129.61,129.59,0.05828162]
[1744732524730,7.7166,129.6,129.59,0.05828162]
[1744732526731,7.7178,129.58,129.57,32.94]
[1744732526936,7.7178,129.58,129.55,7.7193]
[1744732527129,7.7178,129.58,129.54,32.94]
[1744732527634,0.05297317,129.57,129.55,0.05920305]
[1744732528236,0.05297317,129.57,129.55,7.77870305]
[1744732528732,0.05297317,129.57,129.55,0.05920305]
[1744732528931,25.93547322,129.57,129.55,0.05920305]
[1744732529230,25.93547322,129.57,129.51,32.94]
[1744732529631,7.7201,129.55,129.51,32.94]
[1744732530239,0.04953056,129.54,129.52,0.05247219]
[1744732530538,0.04953056,129.54,129.52,7.77357219]
[1744732531840,0.04953056,129.54,129.52,0.05247219]
[1744732532639,7.77003056,129.54,129.52,0.05247219]
[1744732533940,0.04953056,129.54,129.52,7.77377219]
[1744732534743,0.04953056,129.54,129.52,0.05247219]
[1744732535437,0.04953056,129.54,129.53,7.7208]
[1744732537343,0.04953056,129.54,129.52,7.77357219]
[1744732537550,0.04953056,129.54,129.52,0.05247219]
[1744732538145,0.04953056,129.54,129.53,7.7208]
[1744732538444,0.04953056,129.54,129.52,0.05247219]
[1744732538946,0.04953056,129.54,129.52,7.77357219]
[1744732539847,0.04953056,129.54,129.52,0.05247219]
[1744732540449,0.04953056,129.54,129.52,7.77347219]
[1744732540650,0.04953056,129.54,129.52,0.05247219]
[1744732541149,0.04953056,129.54,129.53,7.7208]
[1744732542249,0.04953056,129.54,129.52,7.77347219]
[1744732542650,0.04953056,129.54,129.52,0.05247219]
[1744732542846,0.04953056,129.54,129.53,7.7208]
[1744732543853,0.04953056,129.54,129.52,0.05247219]
[1744732544346,0.04953056,129.54,129.52,7.77357219]
[1744732544649,0.04953056,129.54,129.52,0.05247219]
[1744732545849,0.04953056,129.54,129.53,7.7208]
[1744732546051,0.04953056,129.54,129.52,0.05247219]
[1744732546355,0.04953056,129.54,129.52,7.77347219]
[1744732546554,0.04953056,129.54,129.52,0.05247219]
[1744732547153,7.77003056,129.54,129.52,0.05247219]
[1744732548351,7.77003056,129.54,129.52,7.77387219]
[1744732549553,0.04953056,129.54,129.53,7.7208]
[1744732549851,0.04953056,129.54,129.52,0.05247219]
[1744732550151,7.77003056,129.54,129.52,7.77357219]
[1744732553054,0.04953056,129.54,129.53,7.7208]
[1744732553351,0.04953056,129.54,129.52,0.05247219]
[1744732553853,0.04953056,129.54,129.53,7.7208]
[1744732554352,0.04953056,129.54,129.52,7.77337219]
[1744732554550,0.04953056,129.54,129.52,0.05247219]
[1744732556052,0.04953056,129.54,129.53,7.7208]
[1744732556351,0.04953056,129.54,129.52,0.05247219]
[1744732556553,0.04953056,129.54,129.53,7.7208]
[1744732557851,0.04953056,129.54,129.52,7.77357219]
[1744732558752,0.04953056,129.54,129.53,7.7208]
[1744732559353,7.76983056,129.54,129.52,7.77357219]
[1744732559555,0.04953056,129.54,129.52,0.05247219]
[1744732560556,0.04953056,129.54,129.53,7.7208]
[1744732560953,2.1349,129.61,129.54,16.21281192]
[1744732561156,2.1349,129.61,129.55,32.94]
[1744732561954,7.77475215,129.59,129.57,0.05929607]
[1744732562353,0.05695215,129.59,129.57,0.05929607]
[1744732563057,7.7178,129.58,129.57,0.05929607]
[1744732563258,0.05695215,129.59,129.57,0.05929607]
[1744732563654,16.21281192,129.58,129.52,32.94]
[1744732564160,7.7187,129.57,129.52,32.94]
[1744732564558,0.05743618,129.56,129.53,0.04951168]
[1744732564855,0.05743618,129.56,129.54,7.7199]
[1744732565057,0.05743618,129.56,129.53,0.04951168]
[1744732565251,0.05743618,129.56,129.53,7.76991168]
[1744732565558,7.77673618,129.56,129.53,7.76991168]
[1744732566158,7.7197,129.55,129.53,0.04951168]
[1744732566959,7.7197,129.55,129.53,7.77031168]
[1744732568259,7.7197,129.55,129.53,0.04951168]
[1744732569263,7.7202,129.54,129.53,0.04951168]
[1744732569460,16.2702481,129.56,129.53,0.04951168]
[1744732569857,7.7202,129.54,129.49,32.94]
[1744732570459,7.7202,129.54,129.52,7.7211]
[1744732570761,1.9653,129.57,129.49,49.15281192]
[1744732570964,0.0555757,129.54,129.53,7.7208]
[1744732571355,0.0555757,129.54,129.52,0.04873741]
[1744732571861,7.7757757,129.54,129.52,0.04873741]
[1744732572059,7.7757757,129.54,129.52,7.76953741]
[1744732572260,0.0555757,129.54,129.52,0.04873741]
[1744732572962,7.7758757,129.54,129.52,0.04873741]
[1744732573264,0.0555757,129.54,129.52,0.04873741]
[1744732573560,7.7760757,129.54,129.52,0.04873741]
[1744732573762,0.0555757,129.54,129.52,7.76953741]
[1744732574159,7.7758757,129.54,129.52,7.76953741]
[1744732574760,7.7208,129.53,129.52,0.04873741]
[1744732574961,0.0555757,129.54,129.52,0.04873741]
[1744732575261,7.7759757,129.54,129.52,7.77013741]
[1744732575560,0.0555757,129.54,129.52,0.04873741]
[1744732575758,16.26838762,129.54,129.52,0.04873741]
[1744732575964,0.0555757,129.54,129.52,0.04873741]
[1744732576963,0.0555757,129.54,129.53,7.7208]
[1744732578967,0.0555757,129.54,129.52,0.04873741]
[1744732579263,10.43361351,129.54,129.52,0.04873741]
[1744732579463,18.15411351,129.54,129.52,7.77013741]
[1744732580259,18.15411351,129.54,129.52,0.04873741]
[1744732580665,18.09883781,129.53,129.52,0.04873741]
[1744732580964,10.37803781,129.53,129.47,32.9]
[1744732581170,10.37803781,129.49,129.47,32.9]
[1744732581361,10.37803781,129.49,129.48,7.7234]
[1744732582364,10.37803781,129.49,129.47,0.05092364]
[1744732582563,10.37803781,129.48,129.47,0.05092364]
[1744732582763,18.10183781,129.48,129.47,0.05092364]
[1744732583163,23.95773363,129.48,129.47,0.05092364]
[1744732584166,16.23393363,129.48,129.42,32.9]
[1744732584364,16.23393363,129.46,129.42,32.9]
[1744732584765,7.7265,129.44,129.42,32.9]
[1744732585170,7.77897043,129.44,129.42,32.95082335]
[1744732586170,7.77897043,129.44,129.42,40.67812335]
[1744732586668,0.05247043,129.44,129.42,40.67812335]
[1744732586969,0.05247043,129.44,129.43,7.7268]
[1744732587265,7.724,129.48,129.42,32.95082335]
[1744732587672,2.1073,129.49,129.46,7.7248]
[1744732587866,9.8307,129.49,129.46,7.7248]
[1744732588470,7.7238,129.48,129.46,7.78184148]
[1744732590664,7.7244,129.47,129.46,0.05704148]
[1744732593172,2.15646714,129.49,129.46,7.78164148]
[1744732594267,9.87996714,129.49,129.46,7.78164148]
[1744732595177,7.7239,129.48,129.46,7.78164148]
[1744732595472,7.7239,129.48,129.46,0.05704148]
[1744732596973,7.7244,129.47,129.46,0.05704148]
[1744732599470,2.15646714,129.49,129.46,7.78184148]
[1744732600583,9.87996714,129.49,129.46,7.78184148]
[1744732600782,7.77266714,129.49,129.46,7.78184148]
[1744732601480,7.7238,129.48,129.46,7.78184148]
[1744732601786,0.04916714,129.49,129.46,7.78184148]
[1744732602183,7.77276714,129.49,129.46,7.78184148]
[1744732602383,0.04916714,129.49,129.46,7.78184148]
[1744732602782,7.7241,129.48,129.46,0.05704148]
[1744732603883,7.7244,129.47,129.46,0.05704148]
[1744732604988,23.95803363,129.48,129.46,0.05704148]
[1744732605387,16.23393363,129.48,129.46,0.05704148]
[1744732606287,7.7244,129.47,129.46,0.05704148]
[1744732607195,18.1136749,129.47,129.46,0.05704148]
[1744732611491,10.3892749,129.47,129.42,32.9]
[1744732611800,10.3892749,129.43,129.42,32.9]
[1744732611992,10.3892749,129.43,129.39,37.1403]
[1744732612296,10.3892749,129.46,129.41,10.3892749]
[1744732612486,10.3892749,129.45,129.42,0.05737947]
[1744732612691,10.44218104,129.45,129.42,0.05737947]
[1744732613198,18.16798104,129.45,129.43,7.7267]
[1744732613496,10.3892749,129.44,129.42,0.05737947]
[1744732613887,18.1157749,129.44,129.42,7.78447947]
[1744732614602,10.3892749,129.43,129.42,0.05737947]
[1744732614802,18.1160749,129.43,129.42,0.05737947]
[1744732615096,10.3892749,129.44,129.42,0.05737947]
[1744732615302,0.05290614,129.45,129.42,10.44665437]
[1744732615699,0.05290614,129.45,129.44,7.7262]
[1744732617404,0.05290614,129.45,129.43,7.7264]
[1744732617804,10.3892749,129.44,129.42,0.05737947]
[1744732618004,10.3892749,129.44,129.42,7.78447947]
[1744732618403,10.3892749,129.44,129.42,0.05737947]
[1744732618603,10.3892749,129.43,129.42,0.05737947]
[1744732619002,50.9892749,129.43,129.29,23.2052]
[1744732619204,16.26166286,129.37,129.3,2.1409]
[1744732619404,16.26166286,129.37,129.3,4.3155]
[1744732620006,7.78259843,129.35,129.32,0.03950166]
[1744732620805,0.05069843,129.35,129.32,0.03950166]
[1744732621605,7.78249843,129.35,129.32,0.03950166]
[1744732621904,0.05069843,129.35,129.32,0.03950166]
[1744732622907,7.78259843,129.35,129.32,0.03950166]
[1744732623806,7.78259843,129.35,129.32,7.77280166]
[1744732624306,7.7322,129.34,129.32,0.03950166]
[1744732624709,0.05069843,129.35,129.32,0.03950166]
[1744732624907,7.7324,129.34,129.32,0.03950166]
[1744732625608,0.05069843,129.35,129.32,0.03950166]
[1744732625906,49.21236129,129.35,129.32,0.03950166]
[1744732626505,7.7327,129.33,129.32,0.03950166]
[1744732628715,23.99436286,129.33,129.32,0.03950166]
[1744732629012,23.99436286,129.33,129.25,32.9]
[1744732629013,16.26166286,129.33,129.25,32.9]
[1744732629705,16.26166286,129.33,129.25,49.16166286]
[1744732630008,0.05592863,129.3,129.25,49.16166286]
[1744732630214,0.05592863,129.3,129.29,7.7351]
[1744732631007,0.05592863,129.3,129.25,49.16166286]
[1744732631315,0.05592863,129.3,129.25,32.9]
[1744732631514,7.7354,129.29,129.26,7.7366]
[1744732631715,7.7354,129.29,129.25,32.9]
[1744732631909,0.05592863,129.3,129.25,32.9]
[1744732632615,0.05592863,129.3,129.28,7.7356]
[1744732633006,0.05592863,129.3,129.25,49.16166286]
[1744732633210,2.0547,129.39,129.29,16.26166286]
[1744732633410,4.3166,129.41,129.35,16.26166286]
[1744732633607,7.7283,129.41,129.35,16.26166286]
[1744732633918,32.92,129.43,129.35,16.26166286]
[1744732634115,7.7276,129.42,129.37,16.26166286]
[1744732634314,0.052074,129.4,129.39,7.7288]
[1744732634614,7.7288,129.4,129.38,32.97009783]
[1744732635817,0.05536003,129.41,129.38,32.97009783]
[1744732636416,7.7288,129.4,129.38,32.97009783]
[1744732637514,7.7291,129.39,129.38,0.05009783]
[1744732637719,16.26166286,129.4,129.32,32.86]
[1744732638015,16.26166286,129.35,129.29,34.9605]
[1744732638614,0.05416342,129.33,129.3,7.7342]
[1744732638813,0.05416342,129.33,129.29,34.9605]
[1744732639219,0.05416342,129.33,129.3,7.7342]
[1744732639821,0.05416342,129.33,129.29,34.9605]
[1744732640414,0.05416342,129.33,129.32,7.7333]
[1744732641113,0.05416342,129.33,129.29,34.9605]
[1744732641522,0.05416342,129.33,129.32,7.7333]
[1744732643523,0.05416342,129.33,129.29,34.9605]
[1744732643822,0.05416342,129.33,129.29,32.86]
[1744732644419,7.7334,129.32,129.29,32.86]
[1744732644823,7.78716342,129.33,129.29,7.7351]
[1744732645021,0.05416342,129.33,129.27,1.9873]
[1744732645221,0.05416342,129.33,129.27,28.01123978]
[1744732645423,0.05416342,129.33,129.32,7.7333]
[1744732645725,0.05416342,129.33,129.27,28.01123978]
[1744732645922,0.05416342,129.33,129.27,1.9873]
[1744732646416,0.05416342,129.33,129.32,7.7333]
[1744732648028,0.05416342,129.33,129.31,7.7336]
[1744732648729,0.05416342,129.33,129.3,40.6144]
[1744732649128,0.05416342,129.33,129.3,32.88]
[1744732649324,0.05416342,129.33,129.3,40.6142]
[1744732649525,0.05416342,129.33,129.27,34.8673]
[1744732649724,0.05416342,129.33,129.28,7.7354]
[1744732650023,7.7337,129.32,129.27,34.8673]
[1744732650527,7.7337,129.32,129.29,7.735]
[1744732650731,0.05416342,129.33,129.27,60.89123978]
[1744732651333,0.05416342,129.33,129.32,7.7333]
[1744732651729,1.9668,129.39,129.31,32.88]
[1744732652034,26.02393978,129.42,129.31,58.90393978]
[1744732652235,58.90393978,129.44,129.33,26.02393978]
[1744732652434,7.7277,129.42,129.38,7.7292]
[1744732652636,32.88,129.44,129.36,32.88]
[1744732652938,0.05173118,129.41,129.39,7.78305531]
[1744732653138,0.05173118,129.41,129.39,0.05435531]
[1744732653535,26.02393978,129.47,129.39,0.05435531]
[1744732653841,26.02393978,129.48,129.4,32.88]
[1744732654035,7.7258,129.45,129.41,7.7275]
[1744732654235,26.02393978,129.48,129.4,32.88]
[1744732654538,7.726,129.45,129.42,7.7272]
[1744732654739,0.05272557,129.45,129.43,0.0530978]
[1744732655134,0.05272557,129.45,129.43,7.7794978]
[1744732655635,0.05272557,129.45,129.43,0.0530978]
[1744732655836,7.77862557,129.45,129.43,0.0530978]
[1744732656137,0.05272557,129.45,129.43,0.0530978]
[1744732657739,0.05272557,129.45,129.44,7.7262]
[1744732657941,2.1539,129.5,129.44,32.86]
[1744732658140,32.86,129.52,129.44,34.8786]
[1744732658338,30.20753978,129.54,129.48,7.7236]
[1744732658943,0.04870904,129.52,129.5,0.05052915]
[1744732659640,0.04870904,129.52,129.44,34.8786]
[1744732659832,63.06753978,129.54,129.44,34.8786]
[1744732660033,7.7235,129.49,129.45,7.7253]